fUSD/lending_fUSD_20240404
["ID","MTS","AMOUNT","RATE_DAILY","PERIOD"]
[321442726,1712193032065,-405.83051062,0.00024814,2]
[321442727,1712193032074,-405.83051062,0.00024821,2]
[321442728,1712193032084,-405.83051062,0.00024829,2]
[321442729,1712193032093,-405.83051062,0.00024836,2]
[321442730,1712193032103,-405.83051062,0.00024843,2]
[321442731,1712193032112,-410.49341482,0.00024849,2]
[321442732,1712193032125,-761.81216747,0.00024849,2]
[321442733,1712193032137,-2323.74441771,0.00024849,2]
[321442734,1712193032147,-405.83051062,0.0002485,2]
[321442735,1712193032158,-677.88,0.00024857,2]
[321442736,1712193032167,-405.83051062,0.00024857,2]
[321442737,1712193032176,-405.83051062,0.00024864,2]
[321442738,1712193032185,-405.83051062,0.00024871,2]
[321442739,1712193032194,-405.83051062,0.00024879,2]
[321442740,1712193032204,-539.5141467,0.00024897,2]
[321442741,1712193032213,-1720.37406422,0.00024898,2]
[321442742,1712193032225,-1393.25218445,0.00024898,2]
[321442743,1712193032256,-2109.0465448,0.00024898,2]
[321442744,1712193032265,-4102.12917412,0.00024899,2]
[321442745,1712193032276,-5998.61970341,0.00024899,2]
[321442746,1712193032308,-470.41641852,0.00024899,2]
[321442761,1712193038155,-405.83051062,0.00024886,2]
[321442762,1712193038165,-183971.50061823,0.00024899,2]
[321442763,1712193038175,-245000.0,0.000249,2]
[321442764,1712193038186,-7500.0,0.000249,2]
[321442765,1712193038195,-284.87714677,0.00025,2]
[321442766,1712193038205,-20980358.12885631,0.00025,2]
[321442767,1712193038214,-1476884.41462957,0.00025,2]
[321442768,1712193038226,-136681.54710904,0.00025,2]
[321442769,1712193038236,-242.97166787,0.00025,2]
[321442770,1712193038246,-2600.3152557,0.00025,2]
[321442771,1712193038256,-1153.99,0.00025,2]
[321442772,1712193038265,-1102.04,0.00025,2]
[321442773,1712193038276,-1177.0,0.00025,2]
[321442774,1712193038286,-2030.62812396,0.00025,2]
[321442775,1712193038295,-127607.48221531,0.00025,2]
[321442776,1712193038305,-2683.87032758,0.00025,2]
[321442777,1712193038316,-937.78,0.00025166,2]
[321442778,1712193038328,-1000.0,0.00025247,2]
[321442779,1712193038338,-162.0,0.00025515,2]
[321442780,1712193038347,-23900.0,0.00025705,2]
[321442781,1712193038358,-373.0,0.000269,2]
[321442782,1712193038368,-625.3,0.00026989,2]
[321442783,1712193038377,-885.0,0.00027,2]
[321442784,1712193038387,-881.17,0.0002701,2]
[321442785,1712193038397,-153.02,0.00027084,2]
[321442786,1712193038406,-453.18,0.00027123,2]
[321442787,1712193038416,-210.0,0.00027278,2]
[321442788,1712193038425,-210.0,0.00027278,2]
[321442789,1712193038435,-178.76759759,0.00027397,2]
[321442790,1712193038445,-250.0,0.00027397,2]
[321442791,1712193038454,-176.42,0.000274,2]
[321442792,1712193038463,-176.42,0.000274,2]
[321442793,1712193038473,-937.78,0.0002743,2]
[321442794,1712193038482,-3496.05,0.00027588,2]
[321442795,1712193038491,-163.75,0.00027859,2]
[321442796,1712193038501,-1000.0,0.00028403,2]
[321442797,1712193038510,-560.58443518,0.00029,2]
[321442798,1712193038519,-163.75,0.00029008,2]
[321442799,1712193038529,-164.34,0.00029084,2]
[321442800,1712193038539,-592.46592039,0.000295,3]
[321442801,1712193038548,-937.78,0.00029694,2]
[321442802,1712193038558,-2639.48076778,0.0002999,2]
[321442803,1712193038567,-405.14841286,0.0003,4]
[321442804,1712193038580,-155.0,0.0003,2]
[321442805,1712193038589,-606.55912079,0.0003,4]
[321442806,1712193038599,-2174.90402438,0.0003,4]
[321442807,1712193038609,-3205.84389542,0.0003,2]
[321442808,1712193038618,-606.55912079,0.0003,4]
[321442809,1712193038629,-206.0,0.0003,2]
[321442810,1712193038640,-293.0,0.00030005,2]
[321442811,1712193038651,-163.75,0.00030158,2]
[321442812,1712193038661,-3496.05,0.00030328,2]
[321442813,1712193038671,-153.02,0.0003047,2]
[321442814,1712193038680,-1397.31,0.00031057,2]
[321442815,1712193038690,-164.34,0.00031142,2]
[321442816,1712193038702,-163.75,0.00031307,2]
[321442817,1712193038713,-180.0,0.00031342,2]
[321442818,1712193038724,-8601.26261966,0.0003151,2]
[321442819,1712193038734,-1000.0,0.00031559,2]
[321442820,1712193038746,-195.0,0.00031644,2]
[321442821,1712193038756,-937.78,0.00031958,2]
[321442822,1712193038765,-331.73260382,0.00032,4]
[321442823,1712193038775,-163.75,0.00032457,2]
[321442824,1712193038785,-156.25,0.00032877,2]
[321442825,1712193038794,-156.25,0.00032877,2]
[321442826,1712193038803,-150.0,0.00032877,2]
[321442827,1712193038812,-228.26966719,0.000329,30]
[321442828,1712193038821,-2188.154,0.0003311,2]
[321442829,1712193038836,-171.0,0.0003311,2]
[321442830,1712193038845,-12822.962,0.0003311,2]
[321442831,1712193038855,-1049.0,0.0003311,2]
[321442832,1712193038864,-164.34,0.00033199,2]
[321442833,1712193038873,-538.0,0.00033441,2]
[321442834,1712193038883,-283.528,0.00033441,2]
[321442835,1712193039258,-606.0,0.00033441,2]
[321442836,1712193039268,-434.0,0.00033441,2]
[321442837,1712193039278,-1270.0,0.00033441,2]
[321442838,1712193039287,-282.045,0.00033441,2]
[321442839,1712193039296,-1141.0,0.00033441,2]
[321442840,1712193039306,-150.0,0.00033441,2]
[321442841,1712193039316,-3031.0,0.00033441,2]
[321442842,1712193039327,-397.0,0.00033441,2]
[321442843,1712193039337,-1478.885,0.00033441,2]
[321442844,1712193039347,-1395.399,0.00033441,2]
[321442845,1712193039357,-1631.0,0.00033441,2]
[321442846,1712193039366,-150.0,0.00033742,2]
[321442847,1712193039375,-153.02,0.00033855,2]
[321442848,1712193039384,-937.78,0.00034222,2]
[321442849,1712193039394,-1102.04,0.000343,2]
[321442850,1712193039403,-1177.0,0.000344,2]
[321442851,1712193039412,-150.0,0.00034607,2]
[321442852,1712193039421,-1000.0,0.00034715,2]
[321442853,1712193039431,-9053.58976532,0.000348,4]
[321442854,1712193039440,-1104.38189778,0.00035,2]
[321442855,1712193039449,-1281.21723531,0.00035,4]
[321442856,1712193039459,-2616.96942512,0.00035,4]
[321442857,1712193039468,-476.0,0.00035184,5]
[321442858,1712193039478,-164.34,0.00035256,2]
[321442859,1712193039487,-150.0,0.00035472,2]
[321442860,1712193039497,-677.88,0.0003609,2]
[321442861,1712193039506,-1049.0,0.0003611,2]
[321442862,1712193039516,-195.0,0.00036164,2]
[321442863,1712193039526,-150.0,0.00036337,2]
[321442864,1712193039536,-937.78,0.00036486,2]
[321442865,1712193039546,-1153.99,0.000367,2]
[321442866,1712193039555,-93474.44141658,0.00037,4]
[321442867,1712193039565,-7165.63146271,0.00037,2]
[321442868,1712193039578,-150.0,0.00037203,2]
[321442869,1712193039588,-153.02,0.00037241,2]
[321442870,1712193039597,-453.63986306,0.000375,7]
[321442871,1712193039607,-163.78144625,0.000378,2]
[321442872,1712193039616,-881.17,0.00037814,2]
[321442873,1712193039627,-1000.0,0.0003787,2]
[321442874,1712193039638,-100000.0,0.00037927,2]
[321442875,1712193039648,-155.0,0.00038,4]
[321442876,1712193039658,-2100.0,0.00038,7]
[321442877,1712193039667,-1117.8,0.00038027,15]
[321442878,1712193039676,-150.0,0.00038068,2]
[321442879,1712193039686,-1102.04,0.000381,2]
[321442880,1712193039696,-489.98833825,0.000385,4]
[321442881,1712193039709,-6159.06,0.00038678,2]
[321442882,1712193039719,-19574.67,0.00038678,2]
[321442883,1712193039729,-12069.75,0.00038678,2]
[321442884,1712193039740,-155.0,0.000387,4]
[321442885,1712193039750,-1177.0,0.000387,7]
[321442886,1712193039760,-937.78,0.0003875,2]
[321442887,1712193039770,-4216.29442521,0.000388,2]
[321442888,1712193039781,-1000.0,0.000388,2]
[321442889,1712193039790,-17642.0,0.00038819,2]
[321442890,1712193039800,-596.95865573,0.0003888,2]
[321442891,1712193039810,-4064.11230153,0.000389,15]
[321442892,1712193039820,-150.0,0.00038933,2]
[321442893,1712193039831,-2260.94119041,0.0003897,2]
[321442894,1712193039842,-6899.95,0.00039,10]
[321442895,1712193039851,-23526.57874668,0.00039,2]
[321442896,1712193039861,-160.217089,0.00039,21]
[321442897,1712193039871,-1153.99,0.000391,7]
[321442898,1712193039881,-1000.0,0.00039199,30]
[321442899,1712193039890,-168.13795655,0.0003972,5]
[321442900,1712193039899,-578.30923369,0.00039735,12]
[321442901,1712193039909,-150.0,0.00039798,2]
[321442902,1712193039920,-500.0,0.000399,2]
[321442903,1712193039929,-238.60921491,0.000399,48]
[321442904,1712193039938,-238.60921491,0.000399,48]
[321442905,1712193039947,-238.60921491,0.000399,48]
[321442906,1712193039957,-238.60921491,0.000399,48]
[321442907,1712193039967,-238.60921491,0.000399,48]
[321442908,1712193039977,-1991.0,0.0004,2]
[321442909,1712193039987,-1564.16238683,0.0004,30]
[321442910,1712193039996,-1100.0,0.0004,7]
[321442911,1712193040006,-5757.17728566,0.0004,4]
[321442912,1712193040015,-547.00820039,0.0004,4]
[321442913,1712193040026,-192.70693193,0.0004,2]
[321442914,1712193040035,-22098.16965284,0.0004,4]
[321442915,1712193040045,-444.70145682,0.0004,30]
[321442916,1712193040055,-488.25325885,0.0004,30]
[321442917,1712193040064,-425.0703485,0.0004,30]
[321442918,1712193040075,-25914.40770215,0.0004,7]
[321442919,1712193040084,-272.52074903,0.0004,2]
[321442920,1712193040093,-5421.05915283,0.0004,2]
[321442921,1712193040103,-270.55234812,0.0004,30]
[321442922,1712193040112,-5068.67041179,0.0004,21]
[321442923,1712193040122,-1018.42220439,0.0004,60]
[321442924,1712193040132,-1005.96,0.0004,2]
[321442925,1712193040142,-304.08,0.0004,2]
[321442926,1712193040151,-2580.97621685,0.0004,2]
[321442927,1712193040161,-2580.97621685,0.0004,2]
[321442928,1712193040171,-2580.97621685,0.0004,2]
[321442929,1712193040181,-2580.97621685,0.0004,2]
[321442930,1712193040190,-2580.97621685,0.0004,2]
[321442931,1712193040200,-2580.97621685,0.0004,2]
[321442932,1712193040209,-2580.97621685,0.0004,2]
[321442933,1712193040219,-2580.97621685,0.0004,2]
[321442934,1712193040229,-2580.97621685,0.0004,2]
[321442935,1712193040238,-2580.97621685,0.0004,2]
[321442936,1712193040247,-2580.97621685,0.0004,2]
[321442937,1712193040257,-2580.97621685,0.0004,2]
[321442938,1712193040267,-2580.97621685,0.0004,2]
[321442939,1712193040278,-2580.97621685,0.0004,2]
[321442940,1712193040288,-2580.97621685,0.0004,2]
[321442941,1712193040297,-2580.97621685,0.0004,2]
[321442942,1712193040307,-2580.97621685,0.0004,2]
[321442943,1712193040317,-2580.97621685,0.0004,2]
[321442944,1712193040329,-2580.97621685,0.0004,2]
[321442945,1712193040339,-2580.97621685,0.0004,2]
[321442946,1712193040349,-2580.97621685,0.0004,2]
[321442947,1712193040359,-2580.97621685,0.0004,2]
[321442948,1712193040369,-2580.97621685,0.0004,2]
[321442949,1712193040379,-2580.97621685,0.0004,2]
[321442950,1712193040389,-2580.97621685,0.0004,2]
[321442951,1712193040399,-2580.97621685,0.0004,2]
[321442952,1712193040408,-2580.97621685,0.0004,2]
[321442953,1712193040419,-2580.97621685,0.0004,2]
[321442954,1712193040429,-2580.97621685,0.0004,2]
[321442955,1712193040439,-2580.97621685,0.0004,2]
[321442956,1712193040449,-1102.04,0.000406,7]
[321442957,1712193040458,-299.71,0.000406,33]
[321442958,1712193040467,-1005.96,0.000406,2]
[321442959,1712193040476,-475.260357,0.000406,2]
[321442960,1712193040486,-304.08,0.000406,2]
[321442961,1712193040495,-153.02,0.00040626,2]
[321442962,1712193040505,-150.0,0.00040644,120]
[321442963,1712193040514,-150.0,0.00040663,2]
[321442964,1712193040524,-1000.0,0.0004067,3]
[321442965,1712193040534,-1000.0,0.0004067,3]
[321442966,1712193040543,-1003.02325464,0.0004067,3]
[321442967,1712193040553,-400.0,0.0004067,3]
[321442968,1712193040563,-501.26262752,0.0004067,3]
[321442969,1712193040572,-195.0,0.00040685,2]
[321442970,1712193040584,-2220.0,0.00040735,30]
[321442971,1712193040593,-2391.03675158,0.00040735,2]
[321442972,1712193040602,-4523.85877745,0.00040735,15]
[321442973,1712193040611,-4881.96419542,0.00040735,3]
[321442974,1712193040620,-338.15150351,0.00040735,2]
[321442975,1712193040630,-179.36207103,0.00040735,7]
[321442976,1712193040639,-1572.75867537,0.00040735,2]
[321442977,1712193040649,-221.38993663,0.00040735,2]
[321442978,1712193040658,-373.55229766,0.00040735,2]
[321442979,1712193040668,-1476.53586266,0.00040735,2]
[321442980,1712193040677,-7159.53136901,0.00040735,2]
[321442981,1712193040686,-159.24259359,0.00040735,2]
[321442982,1712193040696,-175.44495337,0.00040735,2]
[321442983,1712193040709,-844.58261289,0.00040735,2]
[321442984,1712193040719,-185.3802717,0.00040735,2]
[321442985,1712193040728,-841.16506851,0.00040735,2]
[321442986,1712193040738,-478.39628654,0.00040735,2]
[321442987,1712193040747,-2487.32836811,0.00040735,10]
[321442988,1712193040756,-14346.83831807,0.00040735,3]
[321442989,1712193040766,-643.0,0.00040735,2]
[321442990,1712193040777,-4000.0,0.00040735,3]
[321442991,1712193040787,-942.37101421,0.00040735,2]
[321442992,1712193040796,-6020.36300506,0.00040735,7]
[321442993,1712193040805,-556.61570855,0.00040735,2]
[321442994,1712193040815,-4365.01325498,0.00040735,7]
[321442995,1712193040825,-169.6118067,0.00040735,2]
[321442996,1712193040834,-500.0,0.00040735,2]
[321442997,1712193040843,-550.0,0.00040735,2]
[321442998,1712193040852,-979.29993071,0.00040735,2]
[321442999,1712193040862,-499.999999,0.00040735,2]
[321443000,1712193040871,-500.0,0.00040735,2]
[321443001,1712193040881,-547.47525671,0.00040735,2]
[321443002,1712193040890,-150.0,0.00040735,2]
[321443003,1712193040899,-634.94232582,0.00040735,2]
[321443004,1712193040908,-608.99474061,0.00040735,2]
[321443005,1712193040917,-208.81602519,0.00040735,2]
[321443006,1712193040927,-15928.58441287,0.00040735,7]
[321443007,1712193040936,-436.90124008,0.00040735,2]
[321443008,1712193040945,-563.30598829,0.00040735,2]
[321443009,1712193040955,-234.02174598,0.00040735,2]
[321443010,1712193040964,-524.03350757,0.00040735,2]
[321443011,1712193040973,-887.13764828,0.00040735,2]
[321443012,1712193040983,-468.17560273,0.00040735,2]
[321443013,1712193040993,-384.75447235,0.00040735,2]
[321443014,1712193041003,-240.28754514,0.00040735,2]
[321443015,1712193041013,-8713.40982025,0.00040735,14]
[321443016,1712193041023,-316.68333762,0.00040735,2]
[321443017,1712193041032,-532.49601998,0.00040735,2]
[321443018,1712193041042,-1490.73548226,0.00040735,7]
[321443019,1712193041053,-526.61689502,0.00040735,5]
[321443020,1712193041062,-354.22389253,0.00040735,2]
[321443021,1712193041072,-592.14621856,0.00040735,2]
[321443022,1712193041082,-52677.99808843,0.00040735,7]
[321443023,1712193041094,-34911.50524502,0.00040735,2]
[321443024,1712193041103,-138050.15284922,0.00040735,2]
[321443025,1712193041113,-155.4904952,0.00040735,2]
[321443026,1712193041124,-18956.65677176,0.00040735,3]
[321443027,1712193041133,-3836.92855936,0.00040735,3]
[321443028,1712193041143,-337.35937306,0.00040735,2]
[321443029,1712193041154,-594.76918364,0.00040735,20]
[321443030,1712193041163,-407.0,0.00040735,2]
[321443031,1712193041173,-214.07977406,0.00040735,2]
[321443032,1712193041182,-764.24894133,0.00040735,2]
[321443033,1712193041192,-150.0,0.00040735,2]
[321443034,1712193041202,-150.0,0.00040735,2]
[321443035,1712193041211,-200.0,0.00040735,2]
[321443036,1712193041221,-23086.0,0.00040735,4]
[321443037,1712193041231,-3352.54061562,0.00040735,4]
[321443038,1712193041240,-1828.54434568,0.00040735,10]
[321443039,1712193041250,-3352.54061562,0.00040735,4]
[321443040,1712193041260,-816.39859742,0.00040735,30]
[321443041,1712193041270,-816.39859742,0.00040735,30]
[321443042,1712193041279,-389.32561534,0.00040735,15]
[321443043,1712193041288,-200.0,0.00040735,2]
[321443044,1712193041297,-175.23267945,0.00040735,2]
[321443045,1712193041306,-1117.8,0.00040767,15]
[321443046,1712193041316,-11004.51,0.00040822,2]
[321443047,1712193041326,-156.25,0.00040885,2]
[321443048,1712193041335,-1177.0,0.00041,7]
[321443049,1712193041344,-150.3,0.00041,2]
[321443050,1712193041354,-150.3,0.00041,2]
[321443051,1712193041363,-150.3,0.00041,2]
[321443052,1712193041373,-150.3,0.00041,2]
[321443053,1712193041382,-150.3,0.00041,2]
[321443054,1712193041391,-150.3,0.00041,2]
[321443055,1712193041401,-150.3,0.00041,2]
[321443056,1712193041410,-150.3,0.00041,2]
[321443057,1712193041420,-150.3,0.00041,2]
[321443058,1712193041430,-150.3,0.00041,2]
[321443059,1712193041440,-150.3,0.00041,2]
[321443060,1712193041451,-150.3,0.00041,2]
[321443061,1712193041462,-150.3,0.00041,2]
[321443062,1712193041471,-150.3,0.00041,2]
[321443063,1712193041480,-150.3,0.00041,2]
[321443064,1712193041489,-150.3,0.00041,2]
[321443065,1712193041499,-150.3,0.00041,2]
[321443066,1712193041508,-150.3,0.00041,2]
[321443067,1712193041518,-150.3,0.00041,2]
[321443068,1712193041527,-150.3,0.00041,2]
[321443069,1712193041536,-150.3,0.00041,2]
[321443070,1712193041546,-150.3,0.00041,2]
[321443071,1712193041641,-150.3,0.00041,2]
[321443072,1712193041651,-150.3,0.00041,2]
[321443073,1712193041661,-150.3,0.00041,2]
[321443074,1712193041670,-150.3,0.00041,2]
[321443075,1712193041680,-150.3,0.00041,2]
[321443076,1712193041689,-150.3,0.00041,2]
[321443077,1712193041704,-150.3,0.00041,2]
[321443078,1712193041721,-150.3,0.00041,2]
[321443079,1712193041730,-150.3,0.00041,2]
[321443080,1712193041741,-150.3,0.00041,2]
[321443081,1712193041751,-150.3,0.00041,2]
[321443082,1712193041760,-150.3,0.00041,2]
[321443083,1712193041769,-150.3,0.00041,2]
[321443084,1712193041779,-150.3,0.00041,2]
[321443085,1712193041789,-150.3,0.00041,2]
[321443086,1712193041799,-150.3,0.00041,2]
[321443087,1712193041808,-150.3,0.00041,2]
[321443088,1712193041817,-150.3,0.00041,2]
[321443089,1712193041829,-150.3,0.00041,2]
[321443090,1712193041838,-150.3,0.00041,2]
[321443091,1712193041847,-150.3,0.00041,2]
[321443092,1712193041857,-150.3,0.00041,2]
[321443093,1712193041866,-150.3,0.00041,2]
[321443094,1712193041875,-150.3,0.00041,2]
[321443095,1712193041883,-150.3,0.00041,2]
[321443096,1712193041893,-150.3,0.00041,2]
[321443097,1712193041902,-150.3,0.00041,2]
[321443098,1712193041911,-150.3,0.00041,2]
[321443099,1712193041919,-150.3,0.00041,2]
[321443100,1712193041928,-150.3,0.00041,2]
[321443101,1712193041937,-150.3,0.00041,2]
[321443102,1712193041946,-150.3,0.00041,2]
[321443103,1712193041956,-150.3,0.00041,2]
[321443104,1712193041965,-150.3,0.00041,2]
[321443105,1712193041974,-937.78,0.00041014,2]
[321443106,1712193041983,-1005.96,0.0004105,2]
[321443107,1712193041992,-1000.0,0.00041096,5]
[321443108,1712193042001,-1000.0,0.00041096,5]
[321443109,1712193042010,-1000.0,0.00041096,5]
[321443110,1712193042019,-1000.0,0.00041096,5]
[321443111,1712193042029,-1000.0,0.00041096,5]
[321443112,1712193042038,-1000.0,0.00041096,5]
[321443113,1712193042047,-1000.0,0.00041096,5]
[321443114,1712193042056,-1000.0,0.00041096,5]
[321443115,1712193042065,-1000.0,0.00041096,5]
[321443116,1712193042075,-1000.0,0.00041096,5]
[321443117,1712193042084,-1000.0,0.00041096,5]
[321443118,1712193042093,-1000.0,0.00041096,5]
[321443119,1712193042102,-1000.0,0.00041096,5]
[321443120,1712193042111,-1000.0,0.00041096,5]
[321443121,1712193042121,-1000.0,0.00041096,5]
[321443122,1712193042130,-1000.0,0.00041096,5]
[321443123,1712193042139,-1000.0,0.00041096,5]
[321443124,1712193042148,-1000.0,0.00041096,5]
[321443125,1712193042157,-1000.0,0.00041096,5]
[321443126,1712193042166,-1000.0,0.00041096,5]
[321443127,1712193042176,-1000.0,0.00041096,5]
[321443128,1712193042185,-1000.0,0.00041096,5]
[321443129,1712193042195,-1000.0,0.00041096,5]
[321443130,1712193042204,-1000.0,0.00041096,5]
[321443131,1712193042213,-1000.0,0.00041096,5]
[321443132,1712193042223,-1000.0,0.00041096,5]
[321443133,1712193042232,-1000.0,0.00041096,5]
[321443134,1712193042242,-1000.0,0.00041096,5]
[321443135,1712193042251,-1000.0,0.00041096,5]
[321443136,1712193042262,-1000.0,0.00041096,5]
[321443137,1712193042271,-1000.0,0.00041096,5]
[321443138,1712193042280,-1000.0,0.00041096,5]
[321443139,1712193042290,-1000.0,0.00041096,5]
[321443140,1712193042299,-1000.0,0.00041096,5]
[321443141,1712193042308,-1000.0,0.00041096,5]
[321443142,1712193042317,-1000.0,0.00041096,5]
[321443143,1712193042325,-1000.0,0.00041096,5]
[321443144,1712193042336,-1000.0,0.00041096,5]
[321443145,1712193042344,-1000.0,0.00041096,5]
[321443146,1712193042353,-1000.0,0.00041096,5]
[321443147,1712193042362,-1000.0,0.00041096,5]
[321443148,1712193042371,-1000.0,0.00041096,5]
[321443149,1712193042380,-1000.0,0.00041096,5]
[321443150,1712193042389,-1000.0,0.00041096,5]
[321443151,1712193042398,-1000.0,0.00041096,5]
[321443152,1712193042407,-1000.0,0.00041096,5]
[321443153,1712193042417,-1000.0,0.00041096,5]
[321443154,1712193042426,-1000.0,0.00041096,5]
[321443155,1712193042435,-1000.0,0.00041096,5]
[321443156,1712193042444,-1000.0,0.00041096,5]
[321443157,1712193042453,-1000.0,0.00041096,5]
[321443158,1712193042463,-1000.0,0.00041096,5]
[321443159,1712193042472,-1000.0,0.00041096,5]
[321443160,1712193042481,-1000.0,0.00041096,5]
[321443161,1712193042490,-1000.0,0.00041096,5]
[321443162,1712193042499,-1000.0,0.00041096,5]
[321443163,1712193042508,-1000.0,0.00041096,5]
[321443164,1712193042517,-1000.0,0.00041096,5]
[321443165,1712193042526,-1000.0,0.00041096,5]
[321443166,1712193042535,-1000.0,0.00041096,5]
[321443167,1712193042544,-1000.0,0.00041096,5]
[321443168,1712193042553,-1000.0,0.00041096,5]
[321443169,1712193042564,-1000.0,0.00041096,5]
[321443170,1712193042574,-1000.0,0.00041096,5]
[321443171,1712193042586,-1000.0,0.00041096,5]
[321443172,1712193042594,-1000.0,0.00041096,5]
[321443174,1712193042603,-1000.0,0.00041096,5]
[321443175,1712193042613,-1000.0,0.00041096,5]
[321443176,1712193042623,-1000.0,0.00041096,5]
[321443178,1712193042632,-1000.0,0.00041096,5]
[321443179,1712193042643,-1000.0,0.00041096,5]
[321443180,1712193042652,-1000.0,0.00041096,5]
[321443181,1712193042661,-1000.0,0.00041096,5]
[321443182,1712193042670,-1000.0,0.00041096,5]
[321443183,1712193042680,-1000.0,0.00041096,5]
[321443184,1712193042689,-1000.0,0.00041096,5]
[321443185,1712193042703,-1000.0,0.00041096,5]
[321443186,1712193042712,-1000.0,0.00041096,5]
[321443187,1712193042721,-1000.0,0.00041096,5]
[321443188,1712193042733,-1000.0,0.00041096,5]
[321443189,1712193042743,-1000.0,0.00041096,5]
[321443190,1712193042752,-1000.0,0.00041096,5]
[321443191,1712193042762,-1000.0,0.00041096,5]
[321443192,1712193042772,-1000.0,0.00041096,5]
[321443193,1712193042781,-1000.0,0.00041096,5]
[321443194,1712193042790,-1000.0,0.00041096,5]
[321443195,1712193042799,-1000.0,0.00041096,5]
[321443196,1712193042808,-1000.0,0.00041096,5]
[321443197,1712193042817,-1000.0,0.00041096,5]
[321443198,1712193042828,-1000.0,0.00041096,5]
[321443199,1712193042837,-1000.0,0.00041096,5]
[321443200,1712193042846,-1000.0,0.00041096,5]
[321443201,1712193042855,-1000.0,0.00041096,5]
[321443202,1712193042864,-1000.0,0.00041096,5]
[321443203,1712193042873,-1000.0,0.00041096,5]
[321443204,1712193042882,-1000.0,0.00041096,5]
[321443205,1712193042891,-1000.0,0.00041096,5]
[321443206,1712193042900,-1000.0,0.00041096,5]
[321443207,1712193042910,-1000.0,0.00041096,5]
[321443208,1712193042919,-1000.0,0.00041096,5]
[321443209,1712193042928,-183.0,0.00041096,2]
[321443210,1712193042937,-238.60921491,0.00041326,53]
[321443211,1712193042946,-304.08,0.0004143,2]
[321443212,1712193042956,-150.0,0.00041528,2]
[321443213,1712193042964,-1005.96,0.0004165,2]
[321443214,1712193042973,-317.93881874,0.00042,2]
[321443215,1712193042982,-8767.71778012,0.00042,2]
[321443216,1712193042991,-871.35900685,0.00042,2]
[321443217,1712193043001,-301.0,0.00042,10]
[321443218,1712193043009,-1153.99,0.00042,7]
[321443219,1712193043019,-1303.37965665,0.0004201,2]
[321443220,1712193043028,-304.08,0.0004203,2]
[321443221,1712193043037,-1005.96,0.000421,2]
[321443222,1712193043047,-1397.31,0.0004229,2]
[321443223,1712193043056,-150.0,0.00042394,2]
[321443224,1712193043066,-1005.96,0.000427,2]
[321443225,1712193043076,-1000.0,0.00042807,4]
[321443226,1712193043085,-186.34437692,0.00042857,2]
[321443227,1712193043094,-304.08,0.0004286,2]
[321443228,1712193043103,-1102.04,0.000429,7]
[321443229,1712193043112,-721.41904155,0.00043,4]
[321443230,1712193043122,-1005.96,0.0004315,2]
[321443231,1712193043131,-150.0,0.00043259,2]
[321443232,1712193043140,-937.78,0.00043278,2]
[321443233,1712193043150,-304.08,0.0004346,2]
[321443234,1712193043160,-1117.8,0.00043507,15]
[321443235,1712193043169,-1005.96,0.0004375,2]
[321443236,1712193043179,-441.83,0.00043836,2]
[321443237,1712193043188,-1177.0,0.000439,7]
[321443238,1712193043198,-12625.0,0.00044,2]
[321443239,1712193043208,-16002.88317071,0.00044,2]
[321443240,1712193043217,-1175.80984216,0.00044,30]
[321443241,1712193043227,-2929.285009,0.00044,44]